[Event "*** Biggest EVER Titled Tuesday"]
[Site "Chess.com"]
[Date "2018.04.17"]
[Round "10"]
[White "RojonR"]
[Black "DryCounty"]
[Result "0-1"]
[WhiteElo "2402"]
[BlackElo "2510"]
[TimeControl "180+2"]
[EndTime "15:23:24 PDT"]
[Termination "DryCounty won by resignation"]

1. e4 {[%clk 0:03:01.9]} 1... Nf6 {[%clk 0:02:58.1]} 2. e5 {[%clk 0:03:01.7]}
2... Nd5 {[%clk 0:02:59.5]} 3. Nc3 {[%clk 0:02:59.3]} 3... Nxc3 {[%clk
0:02:59.9]} 4. dxc3 {[%clk 0:02:55.5]} 4... d6 {[%clk 0:03:01.8]} 5. Nf3 {[%clk
0:02:51.4]} 5... Nc6 {[%clk 0:03:01.2]} 6. Bc4 {[%clk 0:02:43.5]} 6... e6 {[%clk
0:03:01.1]} 7. Qe2 {[%clk 0:02:36.2]} 7... Bd7 {[%clk 0:02:55.8]} 8. O-O {[%clk
0:02:34.3]} 8... dxe5 {[%clk 0:02:54.2]} 9. Nxe5 {[%clk 0:02:09.9]} 9... Bd6
{[%clk 0:02:54.8]} 10. Nxd7 {[%clk 0:02:08.7]} 10... Qxd7 {[%clk 0:02:55.1]} 11.
Be3 {[%clk 0:01:56.8]} 11... O-O {[%clk 0:02:54.8]} 12. Rad1 {[%clk 0:01:56.8]}
12... Qe7 {[%clk 0:02:52.9]} 13. f4 {[%clk 0:01:48.8]} 13... Bc5 {[%clk
0:02:49.6]} 14. Kh1 {[%clk 0:01:43.2]} 14... Rad8 {[%clk 0:02:48.9]} 15. Bc1
{[%clk 0:01:36.2]} 15... Rxd1 {[%clk 0:02:44.6]} 16. Rxd1 {[%clk 0:01:19.6]}
16... Rd8 {[%clk 0:02:45.3]} 17. Bd3 {[%clk 0:01:16.1]} 17... g6 {[%clk
0:02:42.2]} 18. Rf1 {[%clk 0:01:08]} 18... Qf6 {[%clk 0:02:35.9]} 19. g4 {[%clk
0:00:54.8]} 19... Qh4 {[%clk 0:02:26.6]} 20. f5 {[%clk 0:00:50.1]} 20... exf5
{[%clk 0:02:21.1]} 21. gxf5 {[%clk 0:00:50.8]} 21... Bd6 {[%clk 0:02:09.6]} 22.
fxg6 {[%clk 0:00:37.7]} 22... hxg6 {[%clk 0:02:10.3]} 23. Qg2 {[%clk 0:00:29.7]}
23... Qh5 {[%clk 0:01:59.7]} 24. Bc4 {[%clk 0:00:20.8]} 24... Ne5 {[%clk
0:01:57.9]} 25. Bb3 {[%clk 0:00:21.6]} 25... Rf8 {[%clk 0:01:49]} 26. Bf4 {[%clk
0:00:22.3]} 26... Kg7 {[%clk 0:01:46.5]} 27. Qg3 {[%clk 0:00:18.7]} 27... Qe2
{[%clk 0:01:33.8]} 28. Re1 {[%clk 0:00:18.7]} 28... Qf3+ {[%clk 0:01:32.9]} 29.
Qxf3 {[%clk 0:00:14.8]} 29... Nxf3 {[%clk 0:01:33.6]} 30. Bxd6 {[%clk
0:00:14.3]} 30... Nxe1 {[%clk 0:01:20.4]} 31. Bxf8+ {[%clk 0:00:14.8]} 31...
Kxf8 {[%clk 0:01:22.2]} 32. Kg1 {[%clk 0:00:14.3]} 32... Nf3+ {[%clk 0:01:21.6]}
33. Kg2 {[%clk 0:00:15.7]} 33... Ne5 {[%clk 0:01:21]} 34. Bd5 {[%clk 0:00:09.8]}
34... b6 {[%clk 0:01:21.7]} 35. Kg3 {[%clk 0:00:08.5]} 35... Ke7 {[%clk
0:01:22.2]} 36. Kf4 {[%clk 0:00:09]} 36... f6 {[%clk 0:01:21.5]} 37. b3 {[%clk
0:00:10.1]} 37... Kd6 {[%clk 0:01:21.5]} 38. Bg2 {[%clk 0:00:10.7]} 38... Nd7
{[%clk 0:01:16.8]} 39. h4 {[%clk 0:00:11.6]} 39... Nf8 {[%clk 0:01:15.7]} 40.
Be4 {[%clk 0:00:12.3]} 40... g5+ {[%clk 0:01:12.9]} 41. hxg5 {[%clk 0:00:12.5]}
41... Ne6+ {[%clk 0:01:13.7]} 42. Kf5 {[%clk 0:00:12.2]} 42... Nxg5 {[%clk
0:01:08.7]} 43. Bd3 {[%clk 0:00:12.1]} 43... Ke7 {[%clk 0:01:08.9]} 44. a4
{[%clk 0:00:12.6]} 44... Nf3 {[%clk 0:01:07]} 45. c4 {[%clk 0:00:12.4]} 45...
Nd4+ {[%clk 0:01:06.6]} 46. Ke4 {[%clk 0:00:13.4]} 46... Ne6 {[%clk 0:01:03.1]}
47. Kf5 {[%clk 0:00:14]} 47... c5 {[%clk 0:01:02.3]} 48. Be4 {[%clk 0:00:12.8]}
48... Nd4+ {[%clk 0:01:02.7]} 49. Kf4 {[%clk 0:00:13.7]} 49... Kd6 {[%clk
0:01:02.2]} 50. Bd3 {[%clk 0:00:12.5]} 50... Ke6 {[%clk 0:01:02.5]} 51. Be4
{[%clk 0:00:09.6]} 51... f5 {[%clk 0:01:03.2]} 52. Bd3 {[%clk 0:00:08.7]} 52...
Kf6 {[%clk 0:01:03.4]} 53. Ke3 {[%clk 0:00:04.9]} 53... Ke5 {[%clk 0:01:03.2]}
54. Kf2 {[%clk 0:00:05.2]} 54... Kf4 {[%clk 0:01:02.5]} 55. Kg2 {[%clk
0:00:03.1]} 55... Nf3 {[%clk 0:01:02.1]} 56. Kf2 {[%clk 0:00:04.3]} 56... Ne5
{[%clk 0:01:02.7]} 57. Bf1 {[%clk 0:00:05.1]} 57... Ng4+ {[%clk 0:01:03.2]} 58.
Ke2 {[%clk 0:00:06.6]} 58... Ne3 {[%clk 0:01:02.5]} 59. c3 {[%clk 0:00:06.2]}
59... Nxf1 {[%clk 0:01:02.9]} 60. Kf2 {[%clk 0:00:08.1]} 0-1

[Event "*** Biggest EVER Titled Tuesday"]
[Site "Chess.com"]
[Date "2018.04.17"]
[Round "10"]
[White "grzechu96"]
[Black "wonderfultime"]
[Result "0-1"]
[WhiteElo "2469"]
[BlackElo "2793"]
[TimeControl "180+2"]
[EndTime "15:23:25 PDT"]
[Termination "wonderfultime won by resignation"]

1. e4 {[%clk 0:03:01.9]} 1... c5 {[%clk 0:03:01]} 2. Nf3 {[%clk 0:03:02.2]} 2...
d6 {[%clk 0:03:02.4]} 3. Bb5+ {[%clk 0:03:02.8]} 3... Nd7 {[%clk 0:03:03.5]} 4.
O-O {[%clk 0:03:02.8]} 4... Nf6 {[%clk 0:03:03.4]} 5. Re1 {[%clk 0:03:02.4]}
5... a6 {[%clk 0:03:04.9]} 6. Bd3 {[%clk 0:03:02.5]} 6... e6 {[%clk 0:03:04.2]}
7. c3 {[%clk 0:03:02.5]} 7... Be7 {[%clk 0:03:05.3]} 8. Bc2 {[%clk 0:03:00.9]}
8... O-O {[%clk 0:03:03.8]} 9. d4 {[%clk 0:02:59.5]} 9... b5 {[%clk 0:03:05.2]}
10. Nbd2 {[%clk 0:02:43.3]} 10... Bb7 {[%clk 0:03:05.2]} 11. Nf1 {[%clk
0:02:40.2]} 11... Rc8 {[%clk 0:03:03.5]} 12. Ng3 {[%clk 0:02:39.7]} 12... Qc7
{[%clk 0:02:59.2]} 13. Bd3 {[%clk 0:02:39.7]} 13... Rfe8 {[%clk 0:02:54.6]} 14.
Qe2 {[%clk 0:02:40.4]} 14... Bf8 {[%clk 0:02:19.7]} 15. Bd2 {[%clk 0:02:40.4]}
15... e5 {[%clk 0:02:14]} 16. d5 {[%clk 0:02:09.3]} 16... c4 {[%clk 0:02:15.3]}
17. Bc2 {[%clk 0:02:10.6]} 17... Nc5 {[%clk 0:02:17.2]} 18. Bg5 {[%clk
0:02:11.4]} 18... Nfd7 {[%clk 0:02:05.4]} 19. Nf5 {[%clk 0:02:08]} 19... Nb6
{[%clk 0:01:55.9]} 20. h4 {[%clk 0:02:04.5]} 20... f6 {[%clk 0:01:52.8]} 21. Be3
{[%clk 0:01:59.1]} 21... Qf7 {[%clk 0:01:51.6]} 22. Nh2 {[%clk 0:01:58.2]} 22...
a5 {[%clk 0:01:48.2]} 23. Kh1 {[%clk 0:01:11.4]} 23... b4 {[%clk 0:01:38.1]} 24.
Rad1 {[%clk 0:00:57.7]} 24... Kh8 {[%clk 0:01:36.2]} 25. Rg1 {[%clk 0:00:54.8]}
25... Nbd7 {[%clk 0:01:19.1]} 26. g4 {[%clk 0:00:51]} 26... Ba6 {[%clk
0:01:19.9]} 27. g5 {[%clk 0:00:27.7]} 27... Nd3 {[%clk 0:01:13.5]} 28. Bb1
{[%clk 0:00:16.4]} 28... Rc7 {[%clk 0:01:08.2]} 29. Rd2 {[%clk 0:00:12.9]} 29...
g6 {[%clk 0:01:03.1]} 30. Ng3 {[%clk 0:00:10.8]} 30... fxg5 {[%clk 0:00:31.6]}
31. hxg5 {[%clk 0:00:10.1]} 31... N7c5 {[%clk 0:00:32.2]} 32. Ng4 {[%clk
0:00:09.8]} 32... Nf4 {[%clk 0:00:33.2]} 33. Qf3 {[%clk 0:00:08.9]} 33... Be7
{[%clk 0:00:34.7]} 34. Nh6 {[%clk 0:00:07.9]} 34... Qf8 {[%clk 0:00:34.2]} 35.
Qg4 {[%clk 0:00:09.1]} 35... Ncd3 {[%clk 0:00:26.8]} 36. Qh4 {[%clk 0:00:05.1]}
36... Bc8 {[%clk 0:00:27.7]} 37. Kh2 {[%clk 0:00:03.6]} 37... Rb7 {[%clk
0:00:25.4]} 38. Rh1 {[%clk 0:00:04.4]} 38... Bd8 {[%clk 0:00:25.8]} 39. Rg1
{[%clk 0:00:02.7]} 39... a4 {[%clk 0:00:21.4]} 40. Ne2 {[%clk 0:00:03]} 40... a3
{[%clk 0:00:21.9]} 41. Nxf4 {[%clk 0:00:03.1]} 41... exf4 {[%clk 0:00:23.4]} 42.
Bd4+ {[%clk 0:00:04]} 42... Ne5 {[%clk 0:00:23.4]} 43. cxb4 {[%clk 0:00:04.1]}
43... Rxb4 {[%clk 0:00:23.4]} 44. bxa3 {[%clk 0:00:05]} 44... Ra4 {[%clk
0:00:24.9]} 45. Bb2 {[%clk 0:00:05.2]} 45... Ba5 {[%clk 0:00:23.7]} 46. Re2
{[%clk 0:00:05.4]} 46... c3 {[%clk 0:00:24.9]} 47. Kh1 {[%clk 0:00:03.5]} 47...
cxb2 {[%clk 0:00:25.5]} 48. Qh3 {[%clk 0:00:03.5]} 48... Bxh3 {[%clk 0:00:26]}
0-1

[Event "*** Biggest EVER Titled Tuesday"]
[Site "Chess.com"]
[Date "2018.04.17"]
[Round "10"]
[White "Godzillator"]
[Black "Bryakin_Mikhail"]
[Result "1/2-1/2"]
[WhiteElo "2308"]
[BlackElo "2609"]
[TimeControl "180+2"]
[EndTime "15:23:27 PDT"]
[Termination "Game drawn by repetition"]

1. d4 {[%clk 0:03:01.9]} 1... Nf6 {[%clk 0:02:59.9]} 2. c4 {[%clk 0:03:01.9]}
2... e6 {[%clk 0:03:01.3]} 3. Nc3 {[%clk 0:03:02.8]} 3... c5 {[%clk 0:02:51.9]}
4. d5 {[%clk 0:03:03.3]} 4... exd5 {[%clk 0:02:53.2]} 5. cxd5 {[%clk 0:03:04.5]}
5... d6 {[%clk 0:02:54.6]} 6. e4 {[%clk 0:03:05.4]} 6... g6 {[%clk 0:02:55.9]}
7. f4 {[%clk 0:03:06.5]} 7... Bg7 {[%clk 0:02:56.7]} 8. Bb5+ {[%clk 0:03:08]}
8... Bd7 {[%clk 0:02:55]} 9. e5 {[%clk 0:03:08.1]} 9... Bxb5 {[%clk 0:02:37.6]}
10. exf6 {[%clk 0:03:08.6]} 10... Bxf6 {[%clk 0:02:30.4]} 11. Nxb5 {[%clk
0:03:08.6]} 11... Qa5+ {[%clk 0:02:30.3]} 12. Nc3 {[%clk 0:03:09.4]} 12... O-O
{[%clk 0:02:18.7]} 13. Ne2 {[%clk 0:03:09.2]} 13... Nd7 {[%clk 0:02:12.8]} 14.
O-O {[%clk 0:03:09.3]} 14... Bg7 {[%clk 0:02:14]} 15. Kh1 {[%clk 0:03:09.2]}
15... b5 {[%clk 0:02:14.9]} 16. Ne4 {[%clk 0:03:06.3]} 16... Qc7 {[%clk
0:02:14]} 17. f5 {[%clk 0:03:07.2]} 17... Rfe8 {[%clk 0:02:12.1]} 18. N2g3
{[%clk 0:03:06.9]} 18... Ne5 {[%clk 0:02:05.2]} 19. fxg6 {[%clk 0:03:02.6]}
19... fxg6 {[%clk 0:01:58.2]} 20. Nf6+ {[%clk 0:03:03.1]} 20... Bxf6 {[%clk
0:01:59.5]} 21. Rxf6 {[%clk 0:03:03.9]} 21... Rf8 {[%clk 0:02:00.5]} 22. Rxf8+
{[%clk 0:02:59.2]} 22... Rxf8 {[%clk 0:02:02.4]} 23. Bd2 {[%clk 0:02:57.2]}
23... Qf7 {[%clk 0:02:00.9]} 24. Bc3 {[%clk 0:02:50.1]} 24... Nc4 {[%clk
0:01:59.9]} 25. Ne4 {[%clk 0:02:44]} 25... Ne3 {[%clk 0:01:35.6]} 26. Qg1 {[%clk
0:02:40.8]} 26... Nxd5 {[%clk 0:01:32.5]} 27. Rd1 {[%clk 0:02:28]} 27... Qe6
{[%clk 0:01:24]} 28. Rxd5 {[%clk 0:02:22.6]} 28... Qxd5 {[%clk 0:01:23.6]} 29.
Nf6+ {[%clk 0:02:23.5]} 29... Rxf6 {[%clk 0:01:24.6]} 30. Bxf6 {[%clk
0:02:24.4]} 30... Qxa2 {[%clk 0:01:26.5]} 31. Qe1 {[%clk 0:02:22.3]} 31... Qf7
{[%clk 0:01:01.8]} 32. Qe7 {[%clk 0:02:22.2]} 32... Qxe7 {[%clk 0:00:44.7]} 33.
Bxe7 {[%clk 0:02:22.6]} 33... Kf7 {[%clk 0:00:46]} 34. Bxd6 {[%clk 0:02:23.6]}
34... c4 {[%clk 0:00:47.9]} 35. Kg1 {[%clk 0:02:21.3]} 35... Ke6 {[%clk
0:00:49.2]} 36. Bb4 {[%clk 0:02:22.1]} 36... Kd5 {[%clk 0:00:39.9]} 37. Kf2
{[%clk 0:02:23.1]} 37... Kd4 {[%clk 0:00:40]} 38. Ke2 {[%clk 0:02:24]} 38... Ke4
{[%clk 0:00:40.8]} 39. Kd2 {[%clk 0:02:22.4]} 39... g5 {[%clk 0:00:37.6]} 40.
Bc5 {[%clk 0:02:16.8]} 40... a6 {[%clk 0:00:34.7]} 41. Kc3 {[%clk 0:02:14.6]}
41... g4 {[%clk 0:00:34.7]} 42. Kb4 {[%clk 0:02:12]} 42... Kd3 {[%clk
0:00:35.6]} 43. Ka5 {[%clk 0:02:12.2]} 43... Kc2 {[%clk 0:00:35.9]} 44. Bd4
{[%clk 0:02:10.3]} 44... Kb3 {[%clk 0:00:24.3]} 45. Kxa6 {[%clk 0:02:06.2]}
45... b4 {[%clk 0:00:25.2]} 46. Kb5 {[%clk 0:02:04]} 46... c3 {[%clk 0:00:26.2]}
47. bxc3 {[%clk 0:02:04.5]} 47... bxc3 {[%clk 0:00:28.1]} 48. Kc5 {[%clk
0:02:04.3]} 48... c2 {[%clk 0:00:27.3]} 49. Be3 {[%clk 0:02:05.3]} 49... Kc3
{[%clk 0:00:17.1]} 50. Kd5 {[%clk 0:02:05.6]} 50... Kd3 {[%clk 0:00:18.6]} 51.
Bc1 {[%clk 0:01:47.9]} 51... Ke2 {[%clk 0:00:20.5]} 52. Ke4 {[%clk 0:01:48.1]}
52... Kf2 {[%clk 0:00:21.3]} 53. g3 {[%clk 0:01:47.3]} 53... Kg2 {[%clk
0:00:21.6]} 54. Kf4 {[%clk 0:01:47.6]} 54... h5 {[%clk 0:00:22.9]} 55. Kg5
{[%clk 0:01:16.5]} 55... Kxh2 {[%clk 0:00:23.4]} 56. Kh4 {[%clk 0:01:17.4]}
56... Kg2 {[%clk 0:00:23]} 57. Bd2 {[%clk 0:01:18.6]} 57... Kf3 {[%clk
0:00:19.4]} 58. Bc1 {[%clk 0:01:19.5]} 58... Kg2 {[%clk 0:00:20.1]} 59. Bb2
{[%clk 0:01:19.8]} 59... Kf3 {[%clk 0:00:20.6]} 60. Ba3 {[%clk 0:01:20.3]} 60...
Kg2 {[%clk 0:00:21.8]} 61. Bc1 {[%clk 0:01:21]} 61... Kf3 {[%clk 0:00:23.1]} 62.
Bb2 {[%clk 0:01:20.4]} 62... Kg2 {[%clk 0:00:24]} 63. Bc1 {[%clk 0:01:21.2]}
63... Kf2 {[%clk 0:00:25.1]} 64. Bb2 {[%clk 0:01:20.8]} 64... Kf3 {[%clk
0:00:23.9]} 65. Bc1 {[%clk 0:01:20.6]} 65... Kg2 {[%clk 0:00:25.1]} 66. Bb2
{[%clk 0:01:21.4]} 66... Kf3 {[%clk 0:00:25.2]} 1/2-1/2

[Event "*** Biggest EVER Titled Tuesday"]
[Site "Chess.com"]
[Date "2018.04.17"]
[Round "10"]
[White "WinnerOleg"]
[Black "gmtalentoso"]
[Result "1-0"]
[WhiteElo "2302"]
[BlackElo "2127"]
[TimeControl "180+2"]
[EndTime "15:23:28 PDT"]
[Termination "WinnerOleg won by resignation"]

1. d4 {[%clk 0:03:01.9]} 1... Nf6 {[%clk 0:02:58]} 2. Nf3 {[%clk 0:03:02.8]}
2... b6 {[%clk 0:02:56.7]} 3. g3 {[%clk 0:03:02.9]} 3... Bb7 {[%clk 0:02:51]} 4.
Bg2 {[%clk 0:03:04.2]} 4... g6 {[%clk 0:02:51.7]} 5. O-O {[%clk 0:03:05.3]} 5...
Bg7 {[%clk 0:02:49.7]} 6. c4 {[%clk 0:03:04.5]} 6... O-O {[%clk 0:02:50.1]} 7.
Nc3 {[%clk 0:03:04.4]} 7... d6 {[%clk 0:02:49.7]} 8. Qc2 {[%clk 0:03:01.8]} 8...
Nbd7 {[%clk 0:02:49.4]} 9. e4 {[%clk 0:03:00.6]} 9... c5 {[%clk 0:02:45.1]} 10.
d5 {[%clk 0:02:54.3]} 10... a6 {[%clk 0:02:44.5]} 11. a4 {[%clk 0:02:53.9]}
11... e5 {[%clk 0:02:27.6]} 12. dxe6 {[%clk 0:02:50.9]} 12... fxe6 {[%clk
0:02:27.6]} 13. Bg5 {[%clk 0:02:27.7]} 13... Qc7 {[%clk 0:02:22.3]} 14. Rad1
{[%clk 0:02:26.6]} 14... Rae8 {[%clk 0:02:04]} 15. Rfe1 {[%clk 0:02:06]} 15...
Ng4 {[%clk 0:02:03.2]} 16. b3 {[%clk 0:01:53.1]} 16... h6 {[%clk 0:01:45]} 17.
Bc1 {[%clk 0:01:38.6]} 17... Nde5 {[%clk 0:01:35.9]} 18. Nxe5 {[%clk 0:01:19.8]}
18... Nxe5 {[%clk 0:01:30.5]} 19. f4 {[%clk 0:01:19.2]} 19... Nc6 {[%clk
0:01:28.1]} 20. Ne2 {[%clk 0:01:10]} 20... Nd4 {[%clk 0:01:22]} 21. Nxd4 {[%clk
0:01:09.8]} 21... Bxd4+ {[%clk 0:01:22]} 22. Be3 {[%clk 0:01:09.6]} 22... Qg7
{[%clk 0:01:17.2]} 23. Bxd4 {[%clk 0:01:09.1]} 23... cxd4 {[%clk 0:01:16.9]} 24.
Qd3 {[%clk 0:01:10.4]} 24... e5 {[%clk 0:01:16.6]} 25. Rf1 {[%clk 0:00:54.9]}
25... Bc8 {[%clk 0:01:14.9]} 26. f5 {[%clk 0:00:43.4]} 26... gxf5 {[%clk
0:01:12.7]} 27. exf5 {[%clk 0:00:45.3]} 27... Rf6 {[%clk 0:00:57.2]} 28. Be4
{[%clk 0:00:40.4]} 28... Kh8 {[%clk 0:00:55.3]} 29. Rf3 {[%clk 0:00:34.5]} 29...
Ref8 {[%clk 0:00:54.7]} 30. Rdf1 {[%clk 0:00:35.6]} 30... Qg5 {[%clk 0:00:54.2]}
31. Kg2 {[%clk 0:00:32.4]} 31... h5 {[%clk 0:00:53.8]} 32. h4 {[%clk 0:00:25.6]}
32... Qg4 {[%clk 0:00:51]} 33. R3f2 {[%clk 0:00:24.2]} 33... Rg8 {[%clk
0:00:47.9]} 34. Kh2 {[%clk 0:00:23.3]} 34... Rg7 {[%clk 0:00:43.8]} 35. Bf3
{[%clk 0:00:23.9]} 35... Qxf5 {[%clk 0:00:44]} 36. Qxf5 {[%clk 0:00:24.1]} 36...
Rxf5 {[%clk 0:00:44]} 37. Bxh5 {[%clk 0:00:25.6]} 37... Rxh5 {[%clk 0:00:37.9]}
38. Rf8+ {[%clk 0:00:26.9]} 38... Rg8 {[%clk 0:00:38.5]} 39. R8f6 {[%clk
0:00:26.4]} 39... d3 {[%clk 0:00:28.6]} 40. Rxd6 {[%clk 0:00:27.1]} 40... e4
{[%clk 0:00:29.2]} 41. Re1 {[%clk 0:00:19.2]} 41... Re5 {[%clk 0:00:26.5]} 42.
Rxd3 {[%clk 0:00:19.1]} 42... Bg4 {[%clk 0:00:25.3]} 43. Rde3 {[%clk 0:00:17.4]}
43... Rge8 {[%clk 0:00:26.5]} 44. Kg2 {[%clk 0:00:16.5]} 44... Kg7 {[%clk
0:00:27.2]} 45. Kf2 {[%clk 0:00:17.6]} 45... Rf8+ {[%clk 0:00:25.8]} 46. Kg2
{[%clk 0:00:17.9]} 46... Bf3+ {[%clk 0:00:26.9]} 47. Kh3 {[%clk 0:00:19]} 47...
Kg6 {[%clk 0:00:20.8]} 48. g4 {[%clk 0:00:19.2]} 48... Rd8 {[%clk 0:00:21.1]}
49. Rxf3 {[%clk 0:00:19.9]} 49... exf3 {[%clk 0:00:20.7]} 50. Rxe5 {[%clk
0:00:21.8]} 50... Rd3 {[%clk 0:00:20.6]} 51. Kg3 {[%clk 0:00:20.4]} 51... Rxb3
{[%clk 0:00:20.4]} 52. h5+ {[%clk 0:00:19]} 1-0

[Event "*** Biggest EVER Titled Tuesday"]
[Site "Chess.com"]
[Date "2018.04.17"]
[Round "10"]
[White "Margency"]
[Black "Fandorine"]
[Result "0-1"]
[WhiteElo "2580"]
[BlackElo "2711"]
[TimeControl "180+2"]
[EndTime "15:23:29 PDT"]
[Termination "Fandorine won by resignation"]

1. e4 {[%clk 0:03:01.9]} 1... e5 {[%clk 0:02:56.3]} 2. Nf3 {[%clk 0:03:02.7]}
2... Nc6 {[%clk 0:02:57.7]} 3. Bc4 {[%clk 0:03:04.1]} 3... Bc5 {[%clk
0:02:58.1]} 4. d3 {[%clk 0:03:05.3]} 4... Nf6 {[%clk 0:02:57.2]} 5. O-O {[%clk
0:03:06.7]} 5... d6 {[%clk 0:02:57.4]} 6. c3 {[%clk 0:03:07.5]} 6... a6 {[%clk
0:02:58.6]} 7. Bb3 {[%clk 0:03:08.5]} 7... Ba7 {[%clk 0:02:59.6]} 8. Nbd2 {[%clk
0:03:08.7]} 8... O-O {[%clk 0:02:55.1]} 9. h3 {[%clk 0:03:09.4]} 9... h6 {[%clk
0:02:52.5]} 10. Re1 {[%clk 0:03:10.1]} 10... Be6 {[%clk 0:02:53.7]} 11. Bc2
{[%clk 0:03:09.5]} 11... Re8 {[%clk 0:02:46.5]} 12. Nf1 {[%clk 0:03:09.7]} 12...
d5 {[%clk 0:02:43.8]} 13. exd5 {[%clk 0:03:09.8]} 13... Nxd5 {[%clk 0:02:44.8]}
14. Ng3 {[%clk 0:03:04.2]} 14... Qf6 {[%clk 0:02:20.7]} 15. Ne4 {[%clk
0:02:39.9]} 15... Qg6 {[%clk 0:02:14.5]} 16. Nh4 {[%clk 0:02:36.1]} 16... Qh7
{[%clk 0:02:13.6]} 17. Qh5 {[%clk 0:02:29.8]} 17... f5 {[%clk 0:02:08]} 18. Ng3
{[%clk 0:02:18.3]} 18... g5 {[%clk 0:01:50.5]} 19. Bxg5 {[%clk 0:01:05.5]} 19...
hxg5 {[%clk 0:01:50]} 20. Qxg5+ {[%clk 0:01:06.4]} 20... Qg7 {[%clk 0:01:50.6]}
21. Qxg7+ {[%clk 0:01:06.2]} 21... Kxg7 {[%clk 0:01:51.4]} 22. Nhxf5+ {[%clk
0:01:07]} 22... Kf6 {[%clk 0:01:47.9]} 23. Nh4 {[%clk 0:01:03.8]} 23... Rg8
{[%clk 0:01:44]} 24. Ne4+ {[%clk 0:01:04.3]} 24... Ke7 {[%clk 0:01:45]} 25. Kh2
{[%clk 0:00:59.7]} 25... Raf8 {[%clk 0:01:44.8]} 26. f3 {[%clk 0:00:47.9]} 26...
Nf4 {[%clk 0:01:37.4]} 27. Rad1 {[%clk 0:00:37.4]} 27... Rh8 {[%clk 0:01:30.1]}
28. g3 {[%clk 0:00:38.1]} 28... Rfg8 {[%clk 0:01:31.3]} 29. Bb3 {[%clk
0:00:27.9]} 29... Rxh4 {[%clk 0:00:41.6]} 30. Bxe6 {[%clk 0:00:27.8]} 30... Rh6
{[%clk 0:00:21.2]} 31. gxf4 {[%clk 0:00:18.5]} 31... Kxe6 {[%clk 0:00:18.8]} 32.
d4 {[%clk 0:00:17.3]} 32... exd4 {[%clk 0:00:17.3]} 33. Ng5+ {[%clk 0:00:16]}
33... Kf5 {[%clk 0:00:15.7]} 34. Kg3 {[%clk 0:00:15]} 34... Bc5 {[%clk 0:00:11]}
35. Re4 {[%clk 0:00:14]} 35... Bd6 {[%clk 0:00:11.9]} 36. h4 {[%clk 0:00:15]}
36... dxc3 {[%clk 0:00:10.4]} 37. Rd5+ {[%clk 0:00:15.2]} 37... Kg6 {[%clk
0:00:11.8]} 38. Re6+ {[%clk 0:00:15.5]} 38... Kg7 {[%clk 0:00:13.1]} 39. bxc3
{[%clk 0:00:14.5]} 39... Rxe6 {[%clk 0:00:13.2]} 40. Nxe6+ {[%clk 0:00:16.1]}
40... Kf6+ {[%clk 0:00:15.1]} 41. Ng5 {[%clk 0:00:17.7]} 41... Ne7 {[%clk
0:00:17]} 42. Rd4 {[%clk 0:00:16.8]} 42... Nf5+ {[%clk 0:00:18.1]} 43. Kg4
{[%clk 0:00:17.4]} 43... Nxd4 {[%clk 0:00:19.4]} 44. cxd4 {[%clk 0:00:19.1]}
44... b6 {[%clk 0:00:14.9]} 45. f5 {[%clk 0:00:17.1]} 45... c5 {[%clk
0:00:14.9]} 46. dxc5 {[%clk 0:00:17.1]} 46... bxc5 {[%clk 0:00:16.4]} 47. f4
{[%clk 0:00:17.4]} 47... c4 {[%clk 0:00:17.2]} 48. Kf3 {[%clk 0:00:18.1]} 48...
Kxf5 {[%clk 0:00:18.3]} 49. Ne4 {[%clk 0:00:17.9]} 49... Bxf4 {[%clk 0:00:19.4]}
50. Nf2 {[%clk 0:00:13.4]} 50... Rg3+ {[%clk 0:00:19.6]} 0-1